fUSD/lending_fUSD_20251129
["ID","MTS","AMOUNT","RATE_DAILY","PERIOD"]
[395088346,1764419440317,-1523.553465,0.00014954,2]
[395088347,1764419440326,-151.0,0.00014954,2]
[395088348,1764419440335,-151.0,0.00014954,2]
[395088349,1764419440344,-151.0,0.00014954,2]
[395088350,1764419440353,-151.0,0.00014954,2]
[395088351,1764419440362,-151.0,0.00014954,2]
[395088352,1764419440371,-151.0,0.00014954,2]
[395088353,1764419440380,-151.0,0.00014954,2]
[395088354,1764419440389,-151.0,0.00014954,2]
[395088355,1764419440398,-544.309464,0.00014954,2]
[395088356,1764419440407,-151.0,0.00014954,2]
[395088357,1764419440417,-151.0,0.00014954,2]
[395088358,1764419440426,-151.0,0.00014954,2]
[395088359,1764419440435,-544.309464,0.00014954,2]
[395088360,1764419440444,-151.0,0.00014954,2]
[395088361,1764419440452,-544.309464,0.00014954,2]
[395088362,1764419440461,-544.309464,0.00014954,2]
[395088363,1764419440470,-160.941025,0.00014954,2]
[395088364,1764419440480,-160.941025,0.00014954,2]
[395088365,1764419440488,-160.941025,0.00014954,2]
[395088366,1764419440498,-151.0,0.00014954,2]
[395088367,1764419440506,-160.941025,0.00014954,2]
[395088368,1764419440515,-244.075813,0.00014954,2]
[395088369,1764419440524,-151.0,0.00014954,2]
[395088370,1764419440533,-151.0,0.00014954,2]
[395088371,1764419440542,-244.075813,0.00014954,2]
[395088372,1764419440551,-151.0,0.00014954,2]
[395088373,1764419440561,-244.075813,0.00014954,2]
[395088374,1764419440570,-189.49614,0.00014954,2]
[395088375,1764419440580,-151.0,0.00014954,2]
[395088376,1764419440590,-244.075813,0.00014954,2]
[395088377,1764419440599,-151.0,0.00014954,2]
[395088378,1764419440608,-151.0,0.00014954,2]
[395088379,1764419440618,-1036.362414,0.00014954,2]
[395088380,1764419440627,-1036.362414,0.00014954,2]
[395088381,1764419440637,-151.0,0.00014954,2]
[395088382,1764419440646,-1036.362414,0.00014954,2]
[395088383,1764419440655,-151.0,0.00014954,2]
[395088384,1764419440664,-3799.71755,0.00014954,2]
[395088385,1764419440673,-151.0,0.00014954,2]
[395088386,1764419440682,-1036.362414,0.00014954,2]
[395088387,1764419440692,-3799.71755,0.00014954,2]
[395088388,1764419440701,-151.0,0.00014954,2]
[395088389,1764419440710,-3799.71755,0.00014954,2]
[395088390,1764419440719,-3799.71755,0.00014954,2]
[395088391,1764419440728,-334.605061,0.00014954,2]
[395088392,1764419440737,-334.605061,0.00014954,2]
[395088393,1764419440746,-334.605061,0.00014954,2]
[395088394,1764419440755,-334.605061,0.00014954,2]
[395088395,1764419440764,-366.019478,0.00014954,2]
[395088396,1764419440773,-151.0,0.00014954,2]
[395088397,1764419440782,-4987.002828,0.00014954,2]
[395088398,1764419440791,-366.019478,0.00014954,2]
[395088399,1764419440801,-151.0,0.00014954,2]
[395088400,1764419440811,-4987.002828,0.00014954,2]
[395088401,1764419440820,-4987.002828,0.00014954,2]
[395088402,1764419440829,-4987.002828,0.00014954,2]
[395088403,1764419440838,-366.019478,0.00014954,2]
[395088404,1764419440848,-1176.154169,0.00014954,2]
[395088405,1764419440857,-151.0,0.00014954,2]
[395088406,1764419440868,-4987.002828,0.00014954,2]
[395088407,1764419440877,-1176.154169,0.00014954,2]
[395088408,1764419440886,-151.0,0.00014954,2]
[395088409,1764419440896,-4987.002828,0.00014954,2]
[395088410,1764419440906,-887.520441,0.00014954,2]
[395088411,1764419440915,-366.019478,0.00014954,2]
[395088412,1764419440924,-887.520441,0.00014954,2]
[395088413,1764419440933,-1176.154169,0.00014954,2]
[395088414,1764419440943,-1176.154169,0.00014954,2]
[395088415,1764419440952,-4987.002828,0.00014954,2]
[395088416,1764419440961,-4987.002828,0.00014954,2]
[395088417,1764419440969,-887.520441,0.00014954,2]
[395088418,1764419440979,-166.809883,0.00014954,2]
[395088419,1764419440987,-887.520441,0.00014954,2]
[395088420,1764419440996,-166.809883,0.00014954,2]
[395088421,1764419441005,-1176.154169,0.00014954,2]
[395088422,1764419441014,-89.38191016,0.00014954,2]
[395088423,1764419441027,-1086.77225884,0.00014954,2]
[395088424,1764419441041,-887.520441,0.00014954,2]
[395088425,1764419441050,-887.520441,0.00014954,2]
[395088426,1764419441059,-166.809883,0.00014954,2]
[395088427,1764419441067,-166.809883,0.00014954,2]
[395088428,1764419441076,-1176.154169,0.00014954,2]
[395088429,1764419441087,-1176.154169,0.00014954,2]
[395088430,1764419441096,-151.0,0.00014954,2]
[395088431,1764419441105,-151.0,0.00014954,2]
[395088432,1764419441115,-166.809883,0.00014954,2]
[395088433,1764419441124,-166.809883,0.00014954,2]
[395088434,1764419441133,-151.0,0.00014954,2]
[395088435,1764419441142,-151.0,0.00014954,2]
[395088436,1764419441150,-166.809883,0.00014954,2]
[395088437,1764419441159,-151.0,0.00014954,2]
[395088438,1764419441168,-166.809883,0.00014954,2]
[395088439,1764419441178,-2088.96071,0.00014954,2]
[395088440,1764419441186,-151.0,0.00014954,2]
[395088441,1764419441195,-151.0,0.00014954,2]
[395088442,1764419441204,-151.0,0.00014954,2]
[395088443,1764419441213,-151.0,0.00014954,2]
[395088444,1764419441222,-151.0,0.00014954,2]
[395088445,1764419441231,-2088.96071,0.00014954,2]
[395088446,1764419441240,-151.0,0.00014954,2]
[395088447,1764419441249,-887.520441,0.00014954,2]
[395088448,1764419441258,-2016.36740754,0.00014954,2]
[395088449,1764419441267,-200.0,0.00014954,2]
[395088450,1764419441276,-620.0,0.00014954,2]
[395088451,1764419441285,-119.31875248,0.00014954,2]
[395088452,1764419441297,-31.68124752,0.00014954,2]
[395088453,1764419441306,-151.0,0.00014954,2]
[395088454,1764419441315,-500.0,0.00014954,2]
[395088455,1764419441324,-151.0,0.00014954,2]
[395088456,1764419441333,-151.0,0.00014954,2]
[395088457,1764419441343,-1000.0,0.00014954,2]
[395088458,1764419441352,-500.0,0.00014954,2]
[395088459,1764419441361,-151.0,0.00014954,2]
[395088460,1764419441370,-500.0,0.00014954,2]
[395088461,1764419441379,-151.0,0.00014954,2]
[395088462,1764419441388,-500.0,0.00014954,2]
[395088463,1764419441397,-151.0,0.00014954,2]
[395088464,1764419441406,-100.81340248,0.00014954,2]
[395088465,1764419441518,-248.668642,0.00014954,2]
[395088466,1764419441527,-399.18659752,0.00014954,2]
[395088467,1764419441536,-151.0,0.00014954,2]
[395088468,1764419441545,-500.0,0.00014954,2]
[395088469,1764419441554,-151.0,0.00014954,2]
[395088470,1764419441563,-500.0,0.00014954,2]
[395088471,1764419441572,-279.33316687,0.00014954,2]
[395088472,1764419441607,-220.66683313,0.00014954,2]
[395088473,1764419441616,-151.0,0.00014954,2]
[395088474,1764419441625,-117.56705882,0.00014954,2]
[395088475,1764419441637,-382.43294118,0.00014954,2]
[395088476,1764419441647,-151.0,0.00014954,2]
[395088477,1764419441655,-500.0,0.00014954,2]
[395088478,1764419441664,-140.63376842,0.00014954,2]
[395088502,1764419443429,-1.7e-07,0.00014954,2]
[395088503,1764419443440,-217.44184883,0.00014954,2]
[395088504,1764419443449,-887.520441,0.00014954,2]
[395088505,1764419443458,-1384.07521768,0.00014954,2]
[395088506,1764419443468,-704.88549232,0.00014954,2]
[395088507,1764419443478,-10.36623158,0.00014954,2]
[395088508,1764419443486,-28.4482761,0.00014954,2]
[395088509,1764419443683,-397.05425772,0.00014954,2]
[395088510,1764419443788,-74.49746618,0.00014954,2]
[395088511,1764419443797,-151.0,0.00014954,2]
[395088512,1764419443806,-500.0,0.00014954,2]
[395088513,1764419443815,-151.0,0.00014954,2]
[395088514,1764419443824,-553.64373807,0.00014954,2]
[395088515,1764419443833,-500.0,0.00014954,2]
[395088516,1764419443842,-500.0,0.00014954,2]
[395088517,1764419443851,-151.0,0.00014954,2]
[395088518,1764419443859,-500.0,0.00014954,2]
[395088519,1764419443868,-151.0,0.00014954,2]
[395088520,1764419443877,-500.0,0.00014954,2]
[395088521,1764419443886,-151.0,0.00014954,2]
[395088522,1764419443895,-500.0,0.00014954,2]
[395088523,1764419443904,-151.0,0.00014954,2]
[395088524,1764419443913,-151.0,0.00014954,2]
[395088525,1764419443922,-500.0,0.00014954,2]
[395088526,1764419443931,-151.0,0.00014954,2]
[395088527,1764419443940,-500.0,0.00014954,2]
[395088528,1764419443948,-151.0,0.00014954,2]
[395088529,1764419443957,-500.0,0.00014954,2]
[395088530,1764419443966,-334.5472959,0.00014954,2]
[395088531,1764419443974,-500.0,0.00014954,2]
[395088532,1764419443984,-500.0,0.00014954,2]
[395088533,1764419443992,-500.0,0.00014954,2]
[395088534,1764419444001,-500.0,0.00014954,2]
[395088535,1764419444010,-500.0,0.00014954,2]
[395088536,1764419444019,-500.0,0.00014954,2]
[395088537,1764419444029,-500.0,0.00014954,2]
[395088538,1764419444042,-500.0,0.00014954,2]
[395088539,1764419444050,-151.0,0.00014954,2]
[395088540,1764419444059,-500.0,0.00014954,2]
[395088541,1764419444068,-500.0,0.00014954,2]
[395088542,1764419444078,-500.0,0.00014954,2]
[395088543,1764419444087,-151.0,0.00014954,2]
[395088544,1764419444096,-500.0,0.00014954,2]
[395088545,1764419444105,-500.0,0.00014954,2]
[395088546,1764419444116,-500.0,0.00014954,2]
[395088547,1764419444125,-500.0,0.00014954,2]
[395088548,1764419444136,-200.0,0.00014954,2]
[395088549,1764419444145,-500.0,0.00014954,2]
[395088550,1764419444154,-500.0,0.00014954,2]
[395088551,1764419444163,-300.0,0.00014954,2]
[395088552,1764419444172,-500.0,0.00014954,2]
[395088553,1764419444181,-500.0,0.00014954,2]
[395088554,1764419444190,-500.0,0.00014954,2]
[395088555,1764419444199,-48.52846346,0.00014954,2]
[395088556,1764419444211,-201.47153654,0.00014954,2]
[395088557,1764419444220,-500.0,0.00014954,2]
[395088558,1764419444230,-250.0,0.00014954,2]
[395088559,1764419444239,-371.05894047,0.00014954,2]
[395088564,1764419448418,-644.28299948,0.00014954,2]
[395088565,1764419451297,-675.69920852,0.00014954,2]
[395088566,1764419451306,-258.70156265,0.00014954,2]
[395088567,1764419451357,-899.886888,0.00014954,2]
[395088573,1764419531001,-4465.6242,0.00014863,2]
[395088574,1764419531504,-917.46074303,0.00014863,2]
[395088575,1764419585650,-2254.19163034,0.00014854,2]
[395088576,1764419600965,-300.0,0.00014854,2]
[395088577,1764419609009,-4808.38326068,0.00014854,2]
[395088578,1764419619348,-383.24347864,0.00014854,2]
[395088579,1764419619371,-102.94943129,0.00014855,2]
[395088630,1764419666773,-187.45353053,0.00014758,2]
[395088631,1764419666796,-117.54646947,0.00014759,2]
[395088632,1764419687267,-299.07285986,0.00014759,2]
[395088633,1764419849198,-83.38067067,0.00014759,2]
[395088634,1764419849222,-475.63010927,0.00014759,2]
[395088635,1764419861358,-430.9802544,0.00014759,2]
[395088636,1764419871654,-500.0,0.00014759,2]
[395088637,1764419878249,200.0,0.00014693,2]
[395088638,1764419881330,-342.33339584,0.00014758,2]
[395088639,1764419883524,-551.66660416,0.00014758,2]
[395088640,1764419883534,-6865.1966625,0.00014759,2]
[395088641,1764419883569,-10000.01,0.00014759,2]
[395088642,1764419883637,-10000.01,0.00014759,2]
[395088643,1764419883670,-10000.01,0.00014759,2]
[395088644,1764419888533,-300.0,0.00014758,2]
[395088645,1764419889924,-500.0,0.00014759,2]
[395088646,1764419891967,-9700.01,0.00014759,2]
[395088647,1764419892497,-10000.01,0.00014759,2]
[395088648,1764419892552,-10000.01,0.00014759,2]
[395088649,1764419892625,-10000.01,0.00014759,2]
[395088650,1764419892729,-10000.01,0.00014759,2]
[395088651,1764419892817,-10000.01,0.00014759,2]
[395088652,1764419892879,-10000.01,0.00014759,2]
[395088653,1764419892951,-10000.01,0.00014759,2]
[395088654,1764419893246,-10000.01,0.00014759,2]
[395088655,1764419893463,-10000.01,0.00014759,2]
[395088656,1764419893580,-10000.01,0.00014759,2]
[395088657,1764419893636,-10000.01,0.00014759,2]
[395088658,1764419893779,-10000.01,0.00014759,2]
[395088659,1764419893832,-10000.01,0.00014759,2]
[395088660,1764419893891,-10000.01,0.00014759,2]
[395088661,1764419894820,-10000.01,0.00014759,2]
[395088662,1764419894848,-10000.01,0.00014759,2]
[395088663,1764419895376,-10000.01,0.00014759,2]
[395088664,1764419895419,-10000.01,0.00014759,2]
[395088665,1764419895453,-10000.01,0.00014759,2]
[395088666,1764419895503,-10000.01,0.00014759,2]
[395088667,1764419895517,-10000.01,0.00014759,2]
[395088668,1764419895568,-10000.01,0.00014759,2]
[395088669,1764419895622,-10000.01,0.00014759,2]
[395088670,1764419895679,-10000.01,0.00014759,2]
[395088671,1764419895697,-10000.01,0.00014759,2]
[395088672,1764419895770,-300.0,0.00014759,2]
[395088673,1764419895803,-9400.01,0.00014759,2]
[395088674,1764419895817,-10000.01,0.00014759,2]
[395088675,1764419895930,-10000.01,0.00014759,2]
[395088676,1764419895966,-10000.01,0.00014759,2]
[395088677,1764419897567,-471.43794341,0.00014759,2]
[395088678,1764419902288,-10000.01,0.00014759,2]
[395088679,1764419902389,-10000.01,0.00014759,2]
[395088680,1764419902423,-10000.01,0.00014759,2]
[395088681,1764419902500,-10000.01,0.00014759,2]
[395088682,1764419902565,-10000.01,0.00014759,2]
[395088683,1764419902590,-10000.01,0.00014759,2]
[395088684,1764419903144,-10000.01,0.00014759,2]
[395088685,1764419903207,-10000.01,0.00014759,2]
[395088686,1764419903265,-10000.01,0.00014759,2]
[395088687,1764419903286,-10000.01,0.00014759,2]
[395088688,1764419903299,-10000.01,0.00014759,2]
[395088689,1764419903409,-10000.01,0.00014759,2]
[395088690,1764419903429,-10000.01,0.00014759,2]
[395088691,1764419904088,-10000.01,0.00014759,2]
[395088692,1764419904148,-10000.01,0.00014759,2]
[395088693,1764419904360,-500.0,0.00014759,2]
[395088694,1764419907872,757.8,0.00013699,2]
[395088696,1764419912154,-471.43794341,0.00014759,2]
[395088697,1764419919244,-500.0,0.00014759,2]
[395088698,1764419927678,-243.58897303,0.00014759,2]
[395088699,1764419935193,-300.0,0.00014759,2]
[395088700,1764419942210,-256.41102697,0.00014759,2]
[395088701,1764419948506,-300.0,0.00014758,2]
[395088702,1764419948532,-208.06142505,0.00014759,2]
[395088703,1764419951497,3727.632585,7.945e-05,2]
[395088704,1764419953224,-252.45761694,0.00014759,2]
[395088705,1764419955564,500.0,0.00014659,2]
[395088706,1764419957205,-151.0,0.00014756,2]
[395088707,1764419957225,-366.15754332,0.00014758,2]
[395088708,1764419959111,318.328044,0.00014684,2]
[395088709,1764419959534,-30.89302539,0.00014758,2]
[395088710,1764419959561,-208.58793262,0.00014759,2]
[395088711,1764419962005,-193.7855932,0.00014759,2]
[395088712,1764419966113,-606.2144068,0.00014759,2]
[395088713,1764419968825,-215.49625405,0.00014759,2]
[395088714,1764419970633,-500.0,0.00014759,2]
[395088715,1764419972209,-200.0,0.00014759,2]
[395088716,1764419973639,-500.0,0.00014759,2]
[395088717,1764419975141,-348.26751678,0.00014759,2]
[395088718,1764419979405,-300.0,0.00014759,2]
[395088719,1764419982143,-164.68705187,0.00014758,2]
[395088720,1764419986245,-281.22914264,0.00014758,2]
[395088721,1764419986269,-40.03679476,0.00014758,2]
[395088722,1764419989364,-178.7340626,0.00014758,2]
[395088723,1764419991769,-96.66868914,0.00014758,2]
[395088724,1764419991790,-110.07447229,0.00014758,2]
[395088725,1764419992845,-200.0,0.00014758,2]
[395088726,1764419994420,-189.92552771,0.00014758,2]
[395088727,1764419994441,-93.51198062,0.00014758,2]
[395088728,1764419996333,-300.0,0.00014758,2]
[395088729,1764419998484,-106.48801938,0.00014758,2]
[395088730,1764419998513,-500.0,0.00014758,2]
[395088731,1764419998540,-500.0,0.00014758,2]
[395088732,1764419998569,-259.65699801,0.00014758,2]
[395088733,1764419998600,-500.0,0.00014758,2]
[395088734,1764419998628,-500.0,0.00014758,2]
[395088735,1764419998656,-500.0,0.00014758,2]
[395088736,1764419998688,-500.0,0.00014758,2]
[395088737,1764419998715,-542.99644797,0.00014758,2]
[395088738,1764419999083,-300.0,0.00014758,2]
[395088739,1764419999112,-500.0,0.00014758,2]
[395088740,1764419999139,-81.72706928,0.00014758,2]
[395088741,1764419999397,-418.27293072,0.00014758,2]
[395088742,1764419999428,-500.0,0.00014758,2]
[395088743,1764419999457,-513.74317939,0.00014758,2]
[395088744,1764419999488,-500.0,0.00014758,2]
[395088745,1764419999520,-500.0,0.00014758,2]
[395088746,1764419999547,-500.0,0.00014758,2]
[395088747,1764419999575,-500.0,0.00014758,2]
[395088748,1764419999602,-500.0,0.00014758,2]
[395088749,1764419999633,-500.0,0.00014758,2]
[395088750,1764419999664,-500.0,0.00014758,2]
[395088751,1764419999848,-500.0,0.00014758,2]
[395088752,1764419999877,-500.0,0.00014758,2]
[395088753,1764419999908,-500.0,0.00014758,2]
[395088754,1764419999937,-500.0,0.00014758,2]
[395088755,1764419999969,-500.0,0.00014758,2]
[395088756,1764419999998,-500.0,0.00014758,2]
[395088757,1764420000025,-500.0,0.00014758,2]
[395088758,1764420000054,-420.60978665,0.00014758,2]
[395088759,1764420000090,-500.0,0.00014758,2]
[395088760,1764420000128,-500.0,0.00014758,2]
[395088761,1764420000344,-500.0,0.00014758,2]
[395088762,1764420000377,-500.0,0.00014758,2]
[395088763,1764420000406,-500.0,0.00014758,2]
[395088764,1764420000435,-500.0,0.00014758,2]
[395088765,1764420000468,-500.0,0.00014758,2]
[395088766,1764420000498,-500.0,0.00014758,2]
[395088767,1764420000530,-500.0,0.00014758,2]
[395088768,1764420000559,-500.0,0.00014758,2]
[395088769,1764420000588,-623.64934694,0.00014758,2]
[395088770,1764420000620,-252.71130612,0.00014758,2]
[395088771,1764420000816,-247.28869388,0.00014758,2]
[395088772,1764420000844,-155.56578465,0.00014758,2]
[395088773,1764420000877,-500.0,0.00014758,2]
[395088774,1764420000910,-500.0,0.00014758,2]
[395088775,1764420000943,-500.0,0.00014758,2]
[395088776,1764420000975,-500.0,0.00014758,2]
[395088777,1764420001006,-500.0,0.00014758,2]
[395088778,1764420001040,-500.0,0.00014758,2]
[395088779,1764420001072,-500.0,0.00014758,2]
[395088780,1764420001104,-500.0,0.00014758,2]
[395088781,1764420001137,-500.0,0.00014758,2]
[395088782,1764420001262,-500.0,0.00014758,2]
[395088783,1764420001294,-472.89282691,0.00014758,2]
[395088784,1764420001326,-500.0,0.00014758,2]
[395088785,1764420001358,-500.0,0.00014758,2]
[395088786,1764420001389,-500.0,0.00014758,2]
[395088787,1764420001420,-500.0,0.00014758,2]
[395088788,1764420001452,-500.0,0.00014758,2]
[395088789,1764420001486,-500.0,0.00014758,2]
[395088790,1764420001519,-500.0,0.00014758,2]
[395088791,1764420001550,-500.0,0.00014758,2]
[395088792,1764420002108,-500.0,0.00014758,2]
[395088793,1764420002139,-500.0,0.00014758,2]
[395088794,1764420002174,-500.0,0.00014758,2]
[395088795,1764420002205,-500.0,0.00014758,2]
[395088796,1764420002234,-500.0,0.00014758,2]
[395088797,1764420002266,-829.48135138,0.00014758,2]
[395088798,1764420002298,-829.48135138,0.00014758,2]
[395088799,1764420002331,-829.48135138,0.00014758,2]
[395088800,1764420002455,-829.48135138,0.00014758,2]
[395088801,1764420002491,-829.48135138,0.00014758,2]
[395088802,1764420002522,-829.48135138,0.00014758,2]
[395088803,1764420002554,-829.48135138,0.00014758,2]
[395088804,1764420002586,-829.48135138,0.00014758,2]
[395088805,1764420002619,-829.48135138,0.00014758,2]
[395088806,1764420002744,-829.48135138,0.00014758,2]
[395088807,1764420002781,-829.48135138,0.00014758,2]
[395088808,1764420002816,-829.48135138,0.00014758,2]
[395088809,1764420002851,-829.48135138,0.00014758,2]
[395088810,1764420002891,-829.48135138,0.00014758,2]
[395088811,1764420002926,-829.48135138,0.00014758,2]
[395088812,1764420003052,-300.0,0.00014758,2]
[395088813,1764420005875,-529.48135138,0.00014758,2]
[395088814,1764420005911,-829.48135138,0.00014758,2]
[395088815,1764420005947,-829.48135138,0.00014758,2]
[395088816,1764420005983,-829.48135138,0.00014758,2]
[395088817,1764420006019,-829.48135138,0.00014758,2]
[395088818,1764420006053,-829.48135138,0.00014758,2]
[395088819,1764420010254,-300.0,0.00014757,2]
[395088820,1764420010285,-1200.0,0.00014757,2]
[395088821,1764420010323,-829.48135138,0.00014758,2]
[395088822,1764420010358,-829.48135138,0.00014758,2]
[395088823,1764420010391,-829.48135138,0.00014758,2]
[395088824,1764420010424,-829.48135138,0.00014758,2]
[395088825,1764420010575,-829.48135138,0.00014758,2]
[395088826,1764420010614,-829.48135138,0.00014758,2]
[395088827,1764420010671,-829.48135138,0.00014758,2]
[395088828,1764420010707,-829.48135138,0.00014758,2]
[395088829,1764420010774,-829.48135138,0.00014758,2]
[395088830,1764420010823,-829.48135138,0.00014758,2]
[395088831,1764420010974,-829.48135138,0.00014758,2]
[395088832,1764420011011,-829.48135138,0.00014758,2]
[395088833,1764420011066,-829.48135138,0.00014758,2]
[395088834,1764420011107,-829.48135138,0.00014758,2]
[395088835,1764420011148,-829.48135138,0.00014758,2]
[395088836,1764420011185,-829.48135138,0.00014758,2]
[395088837,1764420011285,-829.48135138,0.00014758,2]
[395088838,1764420011321,-829.48135138,0.00014758,2]
[395088839,1764420011387,-829.48135138,0.00014758,2]
[395088840,1764420011426,-829.48135138,0.00014758,2]
[395088841,1764420011464,-829.48135138,0.00014758,2]
[395088842,1764420011499,-829.48135138,0.00014758,2]
[395088843,1764420012461,-210.0,0.00014757,2]
[395088844,1764420012483,-131.89281075,0.00014758,2]
[395088845,1764420012989,250.0,0.00014009,2]
[395088846,1764420013761,-146.97527448,0.00014758,2]
[395088847,1764420013789,-500.0,0.00014758,2]
[395088848,1764420013816,-572.088014,0.00014758,2]
[395088849,1764420013844,-500.0,0.00014758,2]
[395088850,1764420013874,-500.0,0.00014758,2]
[395088851,1764420013903,-500.0,0.00014758,2]
[395088852,1764420013931,-351.76906037,0.00014758,2]
[395088853,1764420013959,-500.0,0.00014758,2]
[395088854,1764420013987,-500.0,0.00014758,2]
[395088855,1764420014015,-500.0,0.00014758,2]
[395088856,1764420014045,-392.21994804,0.00014758,2]
[395088857,1764420014149,-500.0,0.00014758,2]
[395088858,1764420014178,-500.0,0.00014758,2]
[395088859,1764420014207,-312.69146229,0.00014758,2]
[395088860,1764420014238,-500.0,0.00014758,2]
[395088861,1764420014266,-500.0,0.00014758,2]
[395088862,1764420014295,-500.0,0.00014758,2]
[395088863,1764420014324,-500.0,0.00014758,2]
[395088864,1764420014354,-500.0,0.00014758,2]
[395088865,1764420014382,-500.0,0.00014758,2]
[395088866,1764420014702,-500.0,0.00014758,2]
[395088867,1764420014802,-500.0,0.00014758,2]
[395088868,1764420014831,-500.0,0.00014758,2]
[395088869,1764420014859,-500.0,0.00014758,2]
[395088870,1764420017040,195.0,0.00014383,2]
[395088871,1764420017123,195.0,0.00014608,2]
[395088872,1764420022940,-305.0,0.00014749,2]
[395088873,1764420022974,-500.0,0.00014749,2]
[395088874,1764420023138,-374.62707542,0.00014749,2]
[395088875,1764420023208,-500.0,0.00014749,2]
[395088876,1764420023238,-500.0,0.00014749,2]
[395088877,1764420023255,-500.0,0.00014749,2]
[395088878,1764420023456,-302.0,0.00014749,2]
[395088879,1764420024643,426.35728642,0.000147,2]
[395088880,1764420034475,-151.0,0.00014756,2]
[395088881,1764420034495,-286.60738451,0.00014758,2]
[395088882,1764420045491,-445.06901854,0.00014758,2]
[395088883,1764420045521,-54.93098146,0.00014759,2]
[395088884,1764420056864,-179.50081846,0.00014759,2]
[395088885,1764420064125,150.0,6.6e-07,2]
[395088886,1764420069023,-325.96826623,0.00014759,2]
[395088887,1764420070431,300.0,0.00014758,2]
[395088888,1764420079377,10214.07895735,0.00014659,2]
[395088889,1764420080470,-198.45165438,0.00014757,2]
[395088890,1764420092430,-151.0,0.00014756,2]
[395088891,1764420092452,-151.0,0.00014756,2]
[395088892,1764420092475,-13.17031929,0.00014757,2]
[395088893,1764420100919,-500.35893617,0.00014757,2]
[395088894,1764420108849,-500.0,0.00014757,2]
[395088895,1764420111064,2457.05738,0.00014683,2]
[395088896,1764420115528,-293.86748448,0.00014757,2]
[395088897,1764420119384,-500.0,0.00014757,2]
[395088898,1764420122173,-502.12675571,0.00014757,2]
[395088899,1764420124238,-150.0,0.00014756,2]
[395088900,1764420124260,-181.64569443,0.00014757,2]
[395088901,1764420125497,-9550.01,0.00014757,2]
[395088902,1764420126148,-10000.01,0.00014757,2]
[395088903,1764420126179,-10000.01,0.00014757,2]
[395088904,1764420126274,-10000.01,0.00014757,2]
[395088905,1764420127013,-10000.01,0.00014757,2]
[395088906,1764420127112,-10000.01,0.00014757,2]
[395088907,1764420127190,-10000.01,0.00014757,2]
[395088908,1764420127305,-7135.24869904,0.00014757,2]
[395088909,1764420127314,-2864.76130096,0.00014757,2]
[395088910,1764420127343,-168.35430557,0.00014757,2]
[395088911,1764420127381,-10000.01,0.00014757,2]
[395088912,1764420128350,-1510.68340793,0.00014757,2]
[395088913,1764420128449,-3021.36681586,0.00014757,2]
[395088914,1764420128536,-3957.27636828,0.00014757,2]
[395088915,1764420129163,-500.0,0.00014758,2]
[395088916,1764420129189,-267.47581377,0.00014758,2]
[395088917,1764420131538,-232.52418623,0.00014758,2]
[395088918,1764420131562,-14.14498257,0.00014758,2]
[395088919,1764420133527,-430.51636054,0.00014758,2]
[395088920,1764420135735,-55.33865689,0.00014758,2]
[395088921,1764420135759,-444.66134311,0.00014758,2]
[395088922,1764420141105,-55.33865689,0.00014758,2]
[395088923,1764420141130,-108.39397511,0.00014758,2]
[395088924,1764420143400,-195.0,0.00014758,2]
[395088925,1764420145151,-196.60602489,0.00014758,2]
[395088926,1764420145177,-231.27484438,0.00014758,2]
[395088927,1764420146307,-268.72515562,0.00014758,2]
[395088928,1764420146332,-231.27484438,0.00014758,2]